[Event "*** Titled Tuesday Blitz"]
[Site "Chess.com"]
[Date "2019.09.03"]
[Round "5"]
[White "Gentlejimmy7"]
[Black "r31415"]
[Result "1/2-1/2"]
[WhiteElo "2510"]
[BlackElo "2363"]
[TimeControl "180+2"]
[EndTime "16:10:11 PDT"]
[Termination "Game drawn by 50-move rule"]

1. d4 {[%clk 0:03:01.9]} 1... d6 {[%clk 0:03:01.4]} 2. Nf3 {[%clk 0:03:03.7]}
2... g6 {[%clk 0:03:02.1]} 3. g3 {[%clk 0:03:04.8]} 3... Bg7 {[%clk 0:03:02.9]}
4. Bg2 {[%clk 0:03:06.7]} 4... f5 {[%clk 0:03:04.5]} 5. h4 {[%clk 0:02:56.1]}
5... Nf6 {[%clk 0:03:06.4]} 6. h5 {[%clk 0:02:57.2]} 6... Nxh5 {[%clk
0:03:07.1]} 7. Rxh5 {[%clk 0:02:58.6]} 7... gxh5 {[%clk 0:03:09]} 8. e4 {[%clk
0:02:59.9]} 8... fxe4 {[%clk 0:03:06]} 9. Nh2 {[%clk 0:03:01.1]} 9... O-O {[%clk
0:02:48.1]} 10. Bxe4 {[%clk 0:03:00.8]} 10... Qe8 {[%clk 0:02:44.9]} 11. Qd3
{[%clk 0:02:57.2]} 11... Nc6 {[%clk 0:02:15.3]} 12. Be3 {[%clk 0:02:55.6]} 12...
e5 {[%clk 0:02:15.6]} 13. Bxh7+ {[%clk 0:02:48.6]} 13... Kh8 {[%clk 0:02:16.1]}
14. Bg6 {[%clk 0:02:49.8]} 14... Nb4 {[%clk 0:02:01.4]} 15. Bxe8 {[%clk
0:02:36.8]} 15... Nxd3+ {[%clk 0:02:01.2]} 16. cxd3 {[%clk 0:02:38.7]} 16...
Rxe8 {[%clk 0:01:57.6]} 17. dxe5 {[%clk 0:02:39.5]} 17... Bxe5 {[%clk
0:01:49.5]} 18. Nc3 {[%clk 0:02:41.1]} 18... h4 {[%clk 0:01:41.7]} 19. Nf3
{[%clk 0:02:41.6]} 19... hxg3 {[%clk 0:01:42.4]} 20. Nxe5 {[%clk 0:02:43]} 20...
Rxe5 {[%clk 0:01:21.8]} 21. Kd2 {[%clk 0:02:41.9]} 21... c5 {[%clk 0:01:03.6]}
22. fxg3 {[%clk 0:02:14.3]} 22... Bf5 {[%clk 0:01:04.3]} 23. Rh1+ {[%clk
0:02:09.2]} 23... Kg7 {[%clk 0:01:00.5]} 24. g4 {[%clk 0:02:09.5]} 24... Bg6
{[%clk 0:00:54.9]} 25. d4 {[%clk 0:01:57.3]} 25... Re6 {[%clk 0:00:38.6]} 26.
dxc5 {[%clk 0:01:52.9]} 26... dxc5 {[%clk 0:00:39.2]} 27. Bxc5 {[%clk
0:01:53.7]} 27... Rd8+ {[%clk 0:00:31.3]} 28. Kc1 {[%clk 0:01:54.2]} 28... b6
{[%clk 0:00:32.8]} 29. Ba3 {[%clk 0:01:53.3]} 29... Rh8 {[%clk 0:00:29.9]} 30.
Rxh8 {[%clk 0:01:47.9]} 30... Kxh8 {[%clk 0:00:30.4]} 31. Nb5 {[%clk 0:01:48.7]}
31... a5 {[%clk 0:00:24.5]} 32. Nd6 {[%clk 0:01:46]} 32... Kg7 {[%clk
0:00:08.2]} 33. Kd2 {[%clk 0:01:47]} 33... Kf6 {[%clk 0:00:06.1]} 34. Kc3 {[%clk
0:01:46.6]} 34... Ke5 {[%clk 0:00:04.6]} 35. Nc4+ {[%clk 0:01:38.5]} 35... Kd5
{[%clk 0:00:05.6]} 36. b3 {[%clk 0:01:35.2]} 36... Bb1 {[%clk 0:00:05]} 37. Bc1
{[%clk 0:01:31.7]} 37... Bxa2 {[%clk 0:00:03.4]} 38. Kb2 {[%clk 0:01:32.9]}
38... Bxb3 {[%clk 0:00:03.2]} 39. Kxb3 {[%clk 0:01:33.7]} 39... Rc6 {[%clk
0:00:03.7]} 40. Ne3+ {[%clk 0:01:32.7]} 40... Ke4 {[%clk 0:00:04.5]} 41. Nc2
{[%clk 0:01:32.4]} 41... Kd3 {[%clk 0:00:03.2]} 42. Ne1+ {[%clk 0:01:32.4]}
42... Ke2 {[%clk 0:00:04.3]} 43. Nc2 {[%clk 0:01:33.5]} 43... Kd1 {[%clk
0:00:03.9]} 44. Be3 {[%clk 0:01:24.8]} 44... Rxc2 {[%clk 0:00:03.3]} 45. Bxb6
{[%clk 0:01:26.4]} 45... Rg2 {[%clk 0:00:02.3]} 46. Bxa5 {[%clk 0:01:26]} 46...
Rxg4 {[%clk 0:00:03.8]} 47. Bb4 {[%clk 0:01:25.9]} 47... Ke2 {[%clk 0:00:05.3]}
48. Ka4 {[%clk 0:01:22.7]} 48... Kd3 {[%clk 0:00:07.2]} 49. Kb5 {[%clk
0:01:24.2]} 49... Rg5+ {[%clk 0:00:07.4]} 50. Bc5 {[%clk 0:01:24.8]} 50... Kc3
{[%clk 0:00:08]} 51. Kc6 {[%clk 0:01:24.3]} 51... Kc4 {[%clk 0:00:09.9]} 52. Be3
{[%clk 0:01:19.8]} 52... Rg6+ {[%clk 0:00:11.8]} 53. Kb7 {[%clk 0:01:20.5]}
53... Kb5 {[%clk 0:00:12.8]} 54. Bf4 {[%clk 0:01:20]} 54... Rf6 {[%clk
0:00:12.5]} 55. Be5 {[%clk 0:01:20]} 55... Re6 {[%clk 0:00:13.6]} 56. Bf4 {[%clk
0:01:20.8]} 56... Rf6 {[%clk 0:00:14.6]} 57. Be5 {[%clk 0:01:21.8]} 57... Rf7+
{[%clk 0:00:16.5]} 58. Kb8 {[%clk 0:01:02.2]} 58... Kc6 {[%clk 0:00:14.1]} 59.
Bg3 {[%clk 0:00:58.2]} 59... Rg7 {[%clk 0:00:14.6]} 60. Bf4 {[%clk 0:00:58.7]}
60... Rb7+ {[%clk 0:00:16]} 61. Ka8 {[%clk 0:00:58.6]} 61... Kb6 {[%clk
0:00:11.7]} 62. Be3+ {[%clk 0:00:55.4]} 62... Ka6 {[%clk 0:00:12.8]} 63. Bf4
{[%clk 0:00:56.5]} 63... Rf7 {[%clk 0:00:11.5]} 64. Bh2 {[%clk 0:00:52.7]} 64...
Kb6 {[%clk 0:00:10.2]} 65. Bg1+ {[%clk 0:00:51]} 65... Kc7 {[%clk 0:00:07.7]}
66. Bh2+ {[%clk 0:00:51.7]} 66... Kc8 {[%clk 0:00:07]} 67. Bg1 {[%clk 0:00:48]}
67... Rf5 {[%clk 0:00:05.2]} 68. Be3 {[%clk 0:00:40.4]} 68... Ra5+ {[%clk
0:00:04.2]} 69. Ba7 {[%clk 0:00:41.3]} 69... Rb5 {[%clk 0:00:05.6]} 70. Bf2
{[%clk 0:00:40.4]} 70... Kc7 {[%clk 0:00:05.4]} 71. Bg3+ {[%clk 0:00:38.2]}
71... Kc6 {[%clk 0:00:05.5]} 72. Bf2 {[%clk 0:00:38.7]} 72... Rf5 {[%clk
0:00:05.1]} 73. Bg1 {[%clk 0:00:38.5]} 73... Rg5 {[%clk 0:00:04.6]} 74. Bh2
{[%clk 0:00:38.2]} 74... Rg8+ {[%clk 0:00:05.3]} 75. Bb8 {[%clk 0:00:38.9]}
75... Rg2 {[%clk 0:00:03.3]} 76. Bf4 {[%clk 0:00:30.7]} 76... Rf2 {[%clk
0:00:04.2]} 77. Bg3 {[%clk 0:00:28.1]} 77... Ra2+ {[%clk 0:00:06.1]} 78. Kb8
{[%clk 0:00:28.1]} 78... Ra3 {[%clk 0:00:07.6]} 79. Bh2 {[%clk 0:00:28.1]} 79...
Rb3+ {[%clk 0:00:08.4]} 80. Ka8 {[%clk 0:00:28.5]} 80... Kb6 {[%clk 0:00:07.3]}
81. Bg1+ {[%clk 0:00:27.5]} 81... Kc7 {[%clk 0:00:07.4]} 82. Bh2+ {[%clk
0:00:28.3]} 82... Kc8 {[%clk 0:00:08.9]} 83. Bg1 {[%clk 0:00:29.4]} 83... Rb1
{[%clk 0:00:07.6]} 84. Bf2 {[%clk 0:00:29.8]} 84... Rb8+ {[%clk 0:00:07.2]} 85.
Ka7 {[%clk 0:00:29.9]} 85... Rb2 {[%clk 0:00:08.7]} 86. Be3 {[%clk 0:00:29.1]}
86... Ra2+ {[%clk 0:00:08.3]} 87. Kb6 {[%clk 0:00:29.1]} 87... Ra3 {[%clk
0:00:09.4]} 88. Bd4 {[%clk 0:00:29.6]} 88... Rd3 {[%clk 0:00:10.6]} 89. Kc5
{[%clk 0:00:30.8]} 89... Kd7 {[%clk 0:00:12.1]} 90. Kd5 {[%clk 0:00:32.2]} 90...
Rh3 {[%clk 0:00:13.3]} 91. Ke5 {[%clk 0:00:31.9]} 91... Rh5+ {[%clk 0:00:14.5]}
92. Kf4 {[%clk 0:00:30.4]} 92... Ke6 {[%clk 0:00:15.8]} 93. Bg7 {[%clk
0:00:29.9]} 93... Rh7 {[%clk 0:00:16.4]} 94. Bb2 {[%clk 0:00:28.6]} 94... Rf7+
{[%clk 0:00:17.1]} 95. Ke4 {[%clk 0:00:28.9]} 95... Rb7 {[%clk 0:00:17.5]} 96.
Bc3 {[%clk 0:00:28.8]} 96... Rb3 {[%clk 0:00:18.2]} 1/2-1/2

[Event "*** Titled Tuesday Blitz"]
[Site "Chess.com"]
[Date "2019.09.03"]
[Round "5"]
[White "nocnypako"]
[Black "promen1999"]
[Result "0-1"]
[WhiteElo "2591"]
[BlackElo "2745"]
[TimeControl "180+2"]
[EndTime "16:11:16 PDT"]
[Termination "promen1999 won on time"]

1. d4 {[%clk 0:03:01.9]} 1... Nf6 {[%clk 0:02:58.6]} 2. Nf3 {[%clk 0:03:02.4]}
2... b6 {[%clk 0:02:57.2]} 3. Bg5 {[%clk 0:03:03.6]} 3... Bb7 {[%clk 0:02:59.1]}
4. e3 {[%clk 0:03:03.4]} 4... e6 {[%clk 0:03:00.1]} 5. Bd3 {[%clk 0:03:04]} 5...
Be7 {[%clk 0:03:01.4]} 6. O-O {[%clk 0:03:05.3]} 6... O-O {[%clk 0:03:02.4]} 7.
Nbd2 {[%clk 0:03:06.8]} 7... c5 {[%clk 0:03:03.6]} 8. c3 {[%clk 0:03:07.6]} 8...
cxd4 {[%clk 0:03:05]} 9. cxd4 {[%clk 0:03:03.8]} 9... h6 {[%clk 0:03:02.3]} 10.
Bh4 {[%clk 0:03:03.4]} 10... d6 {[%clk 0:03:01.7]} 11. Qe2 {[%clk 0:03:01.5]}
11... Nc6 {[%clk 0:03:00.4]} 12. Rac1 {[%clk 0:02:59.6]} 12... Nb4 {[%clk
0:02:57.7]} 13. a3 {[%clk 0:02:47.9]} 13... Nxd3 {[%clk 0:02:57.3]} 14. Qxd3
{[%clk 0:02:49.8]} 14... Qd7 {[%clk 0:02:56.2]} 15. Bxf6 {[%clk 0:02:37.7]}
15... Bxf6 {[%clk 0:02:56.5]} 16. Rc3 {[%clk 0:02:38.9]} 16... Rfc8 {[%clk
0:02:54.4]} 17. Rfc1 {[%clk 0:02:39.5]} 17... Rxc3 {[%clk 0:02:46.2]} 18. Rxc3
{[%clk 0:02:41.4]} 18... Rc8 {[%clk 0:02:47.7]} 19. h3 {[%clk 0:02:41.6]} 19...
Be7 {[%clk 0:02:45.2]} 20. Qc2 {[%clk 0:02:36.9]} 20... Rxc3 {[%clk 0:02:40]}
21. Qxc3 {[%clk 0:02:38.8]} 21... Qc6 {[%clk 0:02:26.3]} 22. Qxc6 {[%clk
0:02:33.9]} 22... Bxc6 {[%clk 0:02:28.2]} 23. Kf1 {[%clk 0:02:34.8]} 23... Kf8
{[%clk 0:02:29.5]} 24. Ke2 {[%clk 0:02:35.4]} 24... Ke8 {[%clk 0:02:31.2]} 25.
Kd3 {[%clk 0:02:36.3]} 25... Kd7 {[%clk 0:02:32.8]} 26. Kc3 {[%clk 0:02:33.5]}
26... f5 {[%clk 0:02:32.1]} 27. Ne1 {[%clk 0:02:32.9]} 27... g5 {[%clk
0:02:23.8]} 28. f3 {[%clk 0:02:33.5]} 28... h5 {[%clk 0:02:21.2]} 29. e4 {[%clk
0:02:29.7]} 29... Bf6 {[%clk 0:02:15.4]} 30. Nd3 {[%clk 0:02:21]} 30... Bg7
{[%clk 0:02:08.2]} 31. e5 {[%clk 0:02:12.9]} 31... Bb5 {[%clk 0:01:45.2]} 32.
Nc4 {[%clk 0:02:06.5]} 32... d5 {[%clk 0:01:18.2]} 33. Nd6 {[%clk 0:01:56.6]}
33... Bxd3 {[%clk 0:01:05.8]} 34. Kxd3 {[%clk 0:01:58.5]} 34... Bf8 {[%clk
0:01:07.1]} 35. Nb5 {[%clk 0:01:14.8]} 35... a6 {[%clk 0:01:07.5]} 36. Nc3
{[%clk 0:01:15.5]} 36... Kc6 {[%clk 0:01:08.7]} 37. Ne2 {[%clk 0:01:10.2]} 37...
h4 {[%clk 0:00:59]} 38. Kc3 {[%clk 0:00:46.4]} 38... Kb5 {[%clk 0:00:58]} 39.
Kb3 {[%clk 0:00:45.5]} 39... Kc6 {[%clk 0:00:54.2]} 40. Kc3 {[%clk 0:00:45.5]}
40... Be7 {[%clk 0:00:55.4]} 41. Kd3 {[%clk 0:00:44.1]} 41... Kb5 {[%clk
0:00:55.2]} 42. Nc3+ {[%clk 0:00:42.8]} 42... Kc6 {[%clk 0:00:56.7]} 43. Ne2
{[%clk 0:00:43.6]} 43... a5 {[%clk 0:00:58.4]} 44. a4 {[%clk 0:00:39.8]} 44...
Bb4 {[%clk 0:00:56.6]} 45. Nc3 {[%clk 0:00:30]} 45... Kd7 {[%clk 0:00:33.4]} 46.
Nd1 {[%clk 0:00:28.1]} 46... Ke7 {[%clk 0:00:32.1]} 47. Nc3 {[%clk 0:00:21.9]}
47... Ke8 {[%clk 0:00:32.5]} 48. Nb5 {[%clk 0:00:21.5]} 48... Kd7 {[%clk
0:00:33.5]} 49. Nc3 {[%clk 0:00:22.3]} 49... Be7 {[%clk 0:00:28.2]} 50. Nb5
{[%clk 0:00:21.9]} 50... Bf8 {[%clk 0:00:27.8]} 51. Ke3 {[%clk 0:00:22.9]} 51...
Bh6 {[%clk 0:00:25.2]} 52. Ke2 {[%clk 0:00:20.8]} 52... Bg7 {[%clk 0:00:23.6]}
53. Kd3 {[%clk 0:00:21.6]} 53... Bf8 {[%clk 0:00:25.1]} 54. Ke2 {[%clk
0:00:22.5]} 54... Bb4 {[%clk 0:00:26.2]} 55. Kd3 {[%clk 0:00:22.6]} 55... Ke7
{[%clk 0:00:24.8]} 56. Ke2 {[%clk 0:00:22.9]} 56... Ke8 {[%clk 0:00:24]} 57.
Nc7+ {[%clk 0:00:22]} 57... Kd7 {[%clk 0:00:24.8]} 58. Nb5 {[%clk 0:00:23.9]}
58... Bf8 {[%clk 0:00:24.4]} 59. Ke3 {[%clk 0:00:22.8]} 59... Be7 {[%clk
0:00:23.6]} 60. Ke2 {[%clk 0:00:23.1]} 60... Bb4 {[%clk 0:00:25.2]} 61. Kd3
{[%clk 0:00:23.5]} 61... Be1 {[%clk 0:00:26.6]} 62. Ke2 {[%clk 0:00:24.4]} 62...
Bg3 {[%clk 0:00:28.1]} 63. Nc3 {[%clk 0:00:23.9]} 63... Bf4 {[%clk 0:00:26.8]}
64. Nb5 {[%clk 0:00:19.9]} 64... Bc1 {[%clk 0:00:27.6]} 65. b3 {[%clk
0:00:20.8]} 65... Bf4 {[%clk 0:00:24.3]} 66. Kd3 {[%clk 0:00:21.4]} 66... Bh2
{[%clk 0:00:25.2]} 67. Ke2 {[%clk 0:00:22.4]} 67... Bg1 {[%clk 0:00:26.6]} 68.
Kd3 {[%clk 0:00:23.4]} 68... Bh2 {[%clk 0:00:23.7]} 69. Nd6 {[%clk 0:00:23.5]}
69... Bg3 {[%clk 0:00:19.4]} 70. Nf7 {[%clk 0:00:18.8]} 70... Bf4 {[%clk
0:00:20.8]} 71. Nd6 {[%clk 0:00:18]} 71... Bc1 {[%clk 0:00:20.4]} 72. Nf7 {[%clk
0:00:15.9]} 72... Ke7 {[%clk 0:00:12.9]} 73. Nd6 {[%clk 0:00:14.8]} 73... Kd8
{[%clk 0:00:14.4]} 74. Nf7+ {[%clk 0:00:13.8]} 74... Kd7 {[%clk 0:00:13.7]} 75.
Nd6 {[%clk 0:00:14.6]} 75... Ba3 {[%clk 0:00:14]} 76. Nb5 {[%clk 0:00:15.1]}
76... Bb4 {[%clk 0:00:15.6]} 77. Ke2 {[%clk 0:00:15.6]} 77... Ke7 {[%clk
0:00:16.4]} 78. Kd3 {[%clk 0:00:16.4]} 78... Ke8 {[%clk 0:00:17.7]} 79. Nc7+
{[%clk 0:00:15.8]} 79... Kd7 {[%clk 0:00:17.5]} 80. Nb5 {[%clk 0:00:17.7]} 80...
Be7 {[%clk 0:00:18.4]} 81. Ke2 {[%clk 0:00:17.7]} 81... Ke8 {[%clk 0:00:19.9]}
82. Kd3 {[%clk 0:00:18.1]} 82... Kf7 {[%clk 0:00:21.3]} 83. Ke2 {[%clk
0:00:18.2]} 83... Kg6 {[%clk 0:00:22.2]} 84. Nc7 {[%clk 0:00:18.9]} 84... Kf7
{[%clk 0:00:21.8]} 85. Nb5 {[%clk 0:00:17]} 85... Bd8 {[%clk 0:00:19.5]} 86.
Nd6+ {[%clk 0:00:17.6]} 86... Kg6 {[%clk 0:00:21.1]} 87. Ke3 {[%clk 0:00:12.1]}
87... Kh5 {[%clk 0:00:20.1]} 88. Nb5 {[%clk 0:00:07.8]} 88... g4 {[%clk
0:00:19.9]} 89. fxg4+ {[%clk 0:00:06.3]} 89... fxg4 {[%clk 0:00:21.8]} 90. Nd6
{[%clk 0:00:06.4]} 90... Bg5+ {[%clk 0:00:13]} 91. Ke2 {[%clk 0:00:06.3]} 91...
gxh3 {[%clk 0:00:13.5]} 92. gxh3 {[%clk 0:00:08.2]} 92... Kg6 {[%clk 0:00:14]}
93. Kf3 {[%clk 0:00:08.6]} 93... Be7 {[%clk 0:00:14.2]} 94. Kg4 {[%clk
0:00:04.8]} 94... Bg5 {[%clk 0:00:11.9]} 95. Nb5 {[%clk 0:00:03.8]} 95... Be3
{[%clk 0:00:13.5]} 96. Kxh4 {[%clk 0:00:03.1]} 96... Kf5 {[%clk 0:00:15.4]} 97.
Kg3 {[%clk 0:00:03.3]} 97... Ke4 {[%clk 0:00:16.6]} 98. h4 {[%clk 0:00:03.9]}
98... Bxd4 {[%clk 0:00:16.9]} 99. Nxd4 {[%clk 0:00:03]} 99... Kxd4 {[%clk
0:00:18.8]} 100. Kf4 {[%clk 0:00:03.1]} 100... Kc3 {[%clk 0:00:20.4]} 101. h5
{[%clk 0:00:03.9]} 101... d4 {[%clk 0:00:22.2]} 102. h6 {[%clk 0:00:05.4]}
102... d3 {[%clk 0:00:24]} 103. h7 {[%clk 0:00:06.7]} 103... d2 {[%clk
0:00:25.9]} 104. h8=Q {[%clk 0:00:07.9]} 104... d1=Q {[%clk 0:00:27.8]} 105. Qf6
{[%clk 0:00:08.6]} 105... Qd5 {[%clk 0:00:26.7]} 106. Qd8 {[%clk 0:00:05.4]}
106... Qxd8 {[%clk 0:00:26.9]} 0-1

[Event "*** Titled Tuesday Blitz"]
[Site "Chess.com"]
[Date "2019.09.03"]
[Round "6"]
[White "KRASAVCHIK2002"]
[Black "daro94"]
[Result "0-1"]
[WhiteElo "2393"]
[BlackElo "2891"]
[TimeControl "180+2"]
[EndTime "16:13:57 PDT"]
[Termination "daro94 won by resignation"]

1. e4 {[%clk 0:03:01.9]} 1... c5 {[%clk 0:02:56.2]} 2. Nf3 {[%clk 0:03:03.2]}
2... d6 {[%clk 0:02:57.4]} 3. d4 {[%clk 0:03:04.4]} 3... cxd4 {[%clk 0:02:59.3]}
4. Nxd4 {[%clk 0:03:06.3]} 4... Nf6 {[%clk 0:03:00.9]} 5. Nc3 {[%clk 0:03:07.6]}
5... a6 {[%clk 0:03:02.5]} 6. f3 {[%clk 0:03:07.9]} 6... e5 {[%clk 0:03:03]} 7.
Nb3 {[%clk 0:03:09.1]} 7... Be6 {[%clk 0:03:02.2]} 8. Be3 {[%clk 0:03:10.2]}
8... Be7 {[%clk 0:03:03.4]} 9. Qd2 {[%clk 0:03:11.1]} 9... O-O {[%clk
0:03:04.7]} 10. O-O-O {[%clk 0:03:12.2]} 10... Nbd7 {[%clk 0:03:05.3]} 11. g4
{[%clk 0:03:13.1]} 11... b5 {[%clk 0:03:00.7]} 12. g5 {[%clk 0:03:14.3]} 12...
Nh5 {[%clk 0:03:01.8]} 13. Nd5 {[%clk 0:03:10.7]} 13... Bxd5 {[%clk 0:03:02.5]}
14. exd5 {[%clk 0:03:12.6]} 14... f6 {[%clk 0:03:03.8]} 15. gxf6 {[%clk
0:03:12.6]} 15... Bxf6 {[%clk 0:03:03.5]} 16. Na5 {[%clk 0:03:12.9]} 16... Qe8
{[%clk 0:02:58.2]} 17. Nc6 {[%clk 0:03:13.7]} 17... Kh8 {[%clk 0:02:40.2]} 18.
Qb4 {[%clk 0:03:12]} 18... Be7 {[%clk 0:02:15.4]} 0-1

[Event "*** Titled Tuesday Blitz"]
[Site "Chess.com"]
[Date "2019.09.03"]
[Round "6"]
[White "ChristianAlm"]
[Black "JussupowFan"]
[Result "1-0"]
[WhiteElo "2293"]
[BlackElo "2191"]
[TimeControl "180+2"]
[EndTime "16:14:51 PDT"]
[Termination "ChristianAlm won by checkmate"]

1. e4 {[%clk 0:03:01.9]} 1... c5 {[%clk 0:02:50.1]} 2. Nf3 {[%clk 0:03:01.1]}
2... d6 {[%clk 0:02:51.2]} 3. d4 {[%clk 0:02:59.2]} 3... cxd4 {[%clk 0:02:51.3]}
4. Nxd4 {[%clk 0:03:01.1]} 4... Nf6 {[%clk 0:02:52.4]} 5. Nc3 {[%clk 0:03:01.7]}
5... g6 {[%clk 0:02:52]} 6. Be3 {[%clk 0:03:02.1]} 6... Bg7 {[%clk 0:02:52.9]}
7. f3 {[%clk 0:03:02.8]} 7... a6 {[%clk 0:02:54]} 8. Qd2 {[%clk 0:03:03.7]} 8...
Nbd7 {[%clk 0:02:55.3]} 9. Bc4 {[%clk 0:03:04.6]} 9... b5 {[%clk 0:02:56.3]} 10.
Bb3 {[%clk 0:03:05.4]} 10... Bb7 {[%clk 0:02:57.4]} 11. h4 {[%clk 0:03:02.5]}
11... h5 {[%clk 0:02:57.3]} 12. O-O-O {[%clk 0:03:01.9]} 12... Nc5 {[%clk
0:02:58.3]} 13. Kb1 {[%clk 0:02:54.4]} 13... Rc8 {[%clk 0:02:57.1]} 14. Bd5
{[%clk 0:02:49.1]} 14... O-O {[%clk 0:02:53.5]} 15. Bxb7 {[%clk 0:02:45.2]}
15... Nxb7 {[%clk 0:02:55.4]} 16. g4 {[%clk 0:02:43.5]} 16... b4 {[%clk
0:02:56.4]} 17. Nd5 {[%clk 0:02:29.7]} 17... hxg4 {[%clk 0:02:48.6]} 18. Bh6
{[%clk 0:02:28.2]} 18... gxf3 {[%clk 0:02:37.3]} 19. Bxg7 {[%clk 0:02:22.7]}
19... Kxg7 {[%clk 0:02:39.2]} 20. Nf5+ {[%clk 0:02:19.7]} 20... gxf5 {[%clk
0:02:14]} 21. Rdg1+ {[%clk 0:02:19.4]} 21... Kh7 {[%clk 0:02:12.7]} 22. Qg5
{[%clk 0:02:19.4]} 22... Rg8 {[%clk 0:02:10.1]} 23. Nxf6+ {[%clk 0:02:19.7]}
23... exf6 {[%clk 0:02:08.7]} 24. Qh5# {[%clk 0:02:20.5]} 1-0

[Event "*** Titled Tuesday Blitz"]
[Site "Chess.com"]
[Date "2019.09.03"]
[Round "6"]
[White "bascheyaro"]
[Black "ulises2013"]
[Result "1-0"]
[WhiteElo "2688"]
[BlackElo "2500"]
[TimeControl "180+2"]
[EndTime "16:15:00 PDT"]
[Termination "bascheyaro won by resignation"]

1. d4 {[%clk 0:03:01.9]} 1... g6 {[%clk 0:02:59.7]} 2. c4 {[%clk 0:03:03.3]}
2... Bg7 {[%clk 0:03:00.5]} 3. Nf3 {[%clk 0:03:05.2]} 3... c5 {[%clk 0:03:00.9]}
4. Nc3 {[%clk 0:03:06.4]} 4... cxd4 {[%clk 0:02:59.7]} 5. Nxd4 {[%clk
0:03:08.3]} 5... Nc6 {[%clk 0:03:01.6]} 6. Nxc6 {[%clk 0:03:09.4]} 6... bxc6
{[%clk 0:03:02]} 7. g3 {[%clk 0:03:10.8]} 7... Nf6 {[%clk 0:03:03.2]} 8. Bg2
{[%clk 0:03:11.9]} 8... O-O {[%clk 0:03:04.8]} 9. O-O {[%clk 0:03:13.2]} 9... d6
{[%clk 0:03:06.4]} 10. b3 {[%clk 0:03:11.7]} 10... d5 {[%clk 0:03:01.6]} 11.
cxd5 {[%clk 0:03:12.3]} 11... cxd5 {[%clk 0:03:01.3]} 12. Nxd5 {[%clk
0:03:01.6]} 12... Nxd5 {[%clk 0:03:01.3]} 13. Bxd5 {[%clk 0:03:02.5]} 13... Bxa1
{[%clk 0:02:55.5]} 14. Bxa8 {[%clk 0:03:02.9]} 14... Bg4 {[%clk 0:02:36.7]} 15.
Bf3 {[%clk 0:02:57.7]} 15... Bxf3 {[%clk 0:02:22.2]} 16. exf3 {[%clk 0:02:58]}
16... Qxd1 {[%clk 0:02:17.1]} 17. Rxd1 {[%clk 0:02:59.9]} 17... Rc8 {[%clk
0:02:12.4]} 18. Be3 {[%clk 0:03:00.5]} 18... Bf6 {[%clk 0:02:06.9]} 19. Bxa7
{[%clk 0:03:00.9]} 19... Rc2 {[%clk 0:02:05.7]} 20. a4 {[%clk 0:02:58.7]} 20...
h5 {[%clk 0:02:00.3]} 21. h4 {[%clk 0:02:58.3]} 21... g5 {[%clk 0:01:49.3]} 22.
hxg5 {[%clk 0:02:58.6]} 22... Bxg5 {[%clk 0:01:51.2]} 23. f4 {[%clk 0:02:58.4]}
23... Bf6 {[%clk 0:01:52.2]} 24. Bd4 {[%clk 0:02:53.3]} 1-0

[Event "*** Titled Tuesday Blitz"]
[Site "Chess.com"]
[Date "2019.09.03"]
[Round "6"]
[White "Korchmar_Vasiliy"]
[Black "StoreySniper"]
[Result "1-0"]
[WhiteElo "2678"]
[BlackElo "2364"]
[TimeControl "180+2"]
[EndTime "16:15:27 PDT"]
[Termination "Korchmar_Vasiliy won by resignation"]

1. d4 {[%clk 0:03:01.9]} 1... g6 {[%clk 0:02:57.4]} 2. e4 {[%clk 0:03:02.8]}
2... Bg7 {[%clk 0:02:57.9]} 3. Nc3 {[%clk 0:03:04.3]} 3... c5 {[%clk 0:02:57.6]}
4. d5 {[%clk 0:03:04.9]} 4... d6 {[%clk 0:02:55.1]} 5. Bb5+ {[%clk 0:03:05.6]}
5... Bd7 {[%clk 0:02:54.6]} 6. a4 {[%clk 0:03:07.5]} 6... Nf6 {[%clk 0:02:55.5]}
7. Nf3 {[%clk 0:03:08.2]} 7... O-O {[%clk 0:02:56.6]} 8. O-O {[%clk 0:03:09.3]}
8... Bxb5 {[%clk 0:02:57.5]} 9. axb5 {[%clk 0:03:10.1]} 9... Nbd7 {[%clk
0:02:58.9]} 10. Bf4 {[%clk 0:03:00.9]} 10... Nb6 {[%clk 0:02:51.5]} 11. Qe2
{[%clk 0:03:01]} 11... Re8 {[%clk 0:02:45.7]} 12. Rfd1 {[%clk 0:03:00.3]} 12...
e6 {[%clk 0:02:40.3]} 13. dxe6 {[%clk 0:03:00.8]} 13... Rxe6 {[%clk 0:02:41.2]}
14. Ng5 {[%clk 0:03:02.4]} 14... Re8 {[%clk 0:02:23.7]} 15. Bxd6 {[%clk
0:03:03.6]} 15... Qc8 {[%clk 0:02:13.1]} 16. e5 {[%clk 0:03:01.4]} 16... h6
{[%clk 0:02:09.3]} 17. Nf3 {[%clk 0:03:01.7]} 17... Nh5 {[%clk 0:02:08.5]} 18.
Qe4 {[%clk 0:02:58.8]} 18... f5 {[%clk 0:01:54.2]} 19. Qh4 {[%clk 0:02:55.1]}
19... Nd7 {[%clk 0:01:47.6]} 20. Nd5 {[%clk 0:02:54.8]} 20... Nxe5 {[%clk
0:01:36.8]} 21. Nxe5 {[%clk 0:02:55.5]} 21... Bxe5 {[%clk 0:01:37.5]} 22. Bxe5
{[%clk 0:02:57.3]} 22... Rxe5 {[%clk 0:01:38.5]} 23. Ne7+ {[%clk 0:02:58.9]}
23... Rxe7 {[%clk 0:01:39.6]} 24. Qxe7 {[%clk 0:03:00.8]} 24... Qf8 {[%clk
0:01:20.6]} 25. Qxb7 {[%clk 0:03:01.2]} 25... Rd8 {[%clk 0:01:15.1]} 26. Rxd8
{[%clk 0:03:01.8]} 26... Qxd8 {[%clk 0:01:15.7]} 27. Qxa7 {[%clk 0:03:03.5]} 1-0

[Event "*** Titled Tuesday Blitz"]
[Site "Chess.com"]
[Date "2019.09.03"]
[Round "6"]
[White "JakeCarlosBanawa"]
[Black "MarcoRiehle"]
[Result "0-1"]
[WhiteElo "2485"]
[BlackElo "2696"]
[TimeControl "180+2"]
[EndTime "16:15:33 PDT"]
[Termination "MarcoRiehle won by resignation"]

1. d4 {[%clk 0:03:01.9]} 1... d5 {[%clk 0:02:58.9]} 2. c4 {[%clk 0:03:02.3]}
2... e6 {[%clk 0:02:59.9]} 3. Nc3 {[%clk 0:03:02.3]} 3... c5 {[%clk 0:03:00.2]}
4. cxd5 {[%clk 0:03:03.3]} 4... cxd4 {[%clk 0:03:01.1]} 5. Qa4+ {[%clk
0:03:04.3]} 5... Bd7 {[%clk 0:03:01.9]} 6. Qxd4 {[%clk 0:03:05.7]} 6... exd5
{[%clk 0:03:03.4]} 7. Qxd5 {[%clk 0:03:07.2]} 7... Nf6 {[%clk 0:03:04.8]} 8. Qd1
{[%clk 0:03:07.4]} 8... Nc6 {[%clk 0:03:06.1]} 9. Nf3 {[%clk 0:03:08]} 9... Bc5
{[%clk 0:03:07.1]} 10. e3 {[%clk 0:02:55.5]} 10... Qe7 {[%clk 0:03:05.8]} 11.
Be2 {[%clk 0:02:54.9]} 11... O-O-O {[%clk 0:03:05.6]} 12. b4 {[%clk 0:02:46.3]}
12... Bxb4 {[%clk 0:03:03.3]} 13. Qb3 {[%clk 0:02:46.6]} 13... Be6 {[%clk
0:03:02]} 14. Bc4 {[%clk 0:02:42.7]} 14... Bxc4 {[%clk 0:02:42.7]} 15. Qxc4
{[%clk 0:02:44.6]} 15... Qe4 {[%clk 0:02:40.1]} 16. Qb3 {[%clk 0:02:27.5]} 16...
Qd3 {[%clk 0:02:34.2]} 17. Bd2 {[%clk 0:02:28.2]} 17... g5 {[%clk 0:02:28.9]}
18. Rb1 {[%clk 0:01:44.6]} 18... g4 {[%clk 0:02:21.7]} 19. a3 {[%clk 0:01:18.7]}
19... gxf3 {[%clk 0:02:21.1]} 20. axb4 {[%clk 0:01:13.9]} 20... fxg2 {[%clk
0:02:19.5]} 0-1